Cogmind - Beta 15 @@@ ROGUE MODE // 2025.10.07 @ 18:17:48 Player: Pyrexia Result: Destroyed by Y-45 Defender with Beam Rifle Performance ------------- Evolutions (2) 1000 Regions Visited (5) 1000 Robots Destroyed (55) 275 Value Destroyed (1658) 1658 Prototype IDs (3) 60 Alien Tech Used (0) 0 Bonus (33) 33 TOTAL SCORE: 4026 Bonus ------- Follower Combat Kills 33 Cogmind --------- Core Integrity 0/550 Matter 291/300 Energy 98/100 System Corruption 2% Temperature Cool (9) Movement Core (50) Location -8/Materials Parts ------- > --- POWER (1) -------- (None) > --- PROPULSION (3) --- (None) > --- UTILITY (4) ------ Target Analyzer Target Analyzer > --- WEAPON (3) ------- (None) > --- INVENTORY (5) ---- (None) Peak State ------------ > --- POWER ------------ Light Nuclear Core > --- PROPULSION ------- Light Treads Light Treads Aluminum Leg > --- UTILITY ---------- Heat Sink Improved Heat Sink Seismic Detector Sensor Drone Bay > --- WEAPON ----------- Particle Gun Particle Gun Minigun > --- INVENTORY -------- Light Nuclear Core Reaction Control System Advanced Beam Cannon Flak Cannon [Rating: 27] Favorites ----------- Power Light Nuclear Core Engine Ion Engine Power Core Light Nuclear Core Propulsion Light Treads Treads Light Treads Leg VSS Leg Hover Unit Airjet Flight Unit Flight Unit Utility Improved Heat Sink Device Improved Heat Sink Storage Huge Storage Unit Processor Target Analyzer Protection Weapon Shielding Weapon Particle Gun Energy Gun Particle Gun Energy Cannon Advanced Beam Cannon Ballistic Gun Minigun Ballistic Cannon Improved Light Cannon Special Weapon Mining Laser Build | -11 -10 -10 -9 -9 -8 ------- Run | Yrd Mat Min Mat Min Mat Slots Evolved 4 | . . . 2 . 2 Power . | . . . . . . Propulsion 1 | . . . . . 1 Utility 2 | . . . 1 . 1 Weapon 1 | . . . 1 . . Parts Attached 52 | 5 11 6 5 . 25 Power 7 | 1 2 . 1 . 3 Engine 4 | 1 2 . . . 1 Core 3 | . . . 1 . 2 Reactor . | . . . . . . Propulsion 16 | 2 4 1 . . 9 Treads 5 | 2 2 1 . . . Leg 6 | . 2 . . . 4 Wheel . | . . . . . . Hover 2 | . . . . . 2 Flight 3 | . . . . . 3 Utility 15 | . 3 2 2 . 8 Device 8 | . 1 2 2 . 3 Storage 3 | . 1 . . . 2 Processor 3 | . . . . . 3 Hackware . | . . . . . . Protection 1 | . 1 . . . . Artifact . | . . . . . . Weapon 14 | 2 2 3 2 . 5 Energy Gun 3 | 1 . 1 1 . . Energy Cannon 3 | . 1 . 1 . 1 Ballistic Gun 3 | 1 . 1 . . 1 Ballistic Cannon 3 | . . . . . 3 Launcher . | . . . . . . Special Weapon 2 | . 1 1 . . . Impact Weapon . | . . . . . . Slashing Weapon . | . . . . . . Piercing Weapon . | . . . . . . Special Melee Weapon . | . . . . . . Unidentified Prototypes 3 | . . 1 1 . 1 Parts Lost 31 | . 5 2 . . 24 Power 3 | . 1 . . . 2 Propulsion 10 | . 2 . . . 8 Utility 7 | . 1 . . . 6 Weapon 11 | . 1 2 . . 8 Highest Loss Streak 8 | . 4 2 . . 8 To Critical Strikes . | . . . . . . Average Backups 3 | . 2 3 3 4 3 Power . | . . 1 . 1 . Propulsion . | . . . . . . Utility . | . . . 1 1 . Weapon 2 | . 2 1 2 2 2 Tool/Special . | . . . . . . Unused Backups 2 | . . . . . 2 Power . | . . . . . . Propulsion 1 | . . . . . 1 Utility 1 | . . . . . 1 Weapon . | . . . . . . Tool/Special . | . . . . . . Average Slot Usage (%) 90 | . 91 98 99 100 84 Engine 5 | . 12 14 3 . 1 Core 4 | . . . 7 11 6 Treads 13 | . 21 27 22 22 3 Leg 3 | . 5 . . . 5 Hover 2 | . . . . . 4 Flight 2 | . . . . . 5 Device 22 | . 4 18 32 33 24 Storage 7 | . 11 9 . . 9 Energy Gun 7 | . 2 12 14 22 1 Energy Cannon 5 | . 10 1 10 11 4 Ballistic Gun 5 | . 14 5 7 . 3 Ballistic Cannon 6 | . . . . . 14 Special Weapon 1 | . . 7 . . . Peak Build Rating 27 | 5 7 18 18 18 27 Average Rating 15 | 3 6 9 16 17 19 On Entrance 9 | . 5 7 11 17 18 Naked Turns 11 | . . . . . 11 Heaviest Build 104 | 8 14 14 18 18 104 Greatest Support 40 | 40 40 40 40 40 40 Greatest Overweight (x) 24 | . 2 . . . 24 Average Overweight (x) 1 | . . . . . 3 Largest Inventory Capacity 25 | 5 5 5 5 5 25 Average Capacity 12 | 5 5 5 5 5 20 Most Carried 8 | 3 5 5 5 5 8 Average Carried 3 | . 2 3 3 4 3 Final Capacity 5 | 5 5 5 5 5 5 Final Carried 5 | 1 3 4 4 5 . Class Distribution -------------------- 31% | Mutant 29% | Scavenger-Gunner 23% | Gunner 15% | Scavenger-Mutant Dominant Class ---------------- Mutant | -10/Materials Mutant | -10/Mines Scavenger-Gunner | -9/Materials Scavenger-Gunner | -9/Mines Gunner | -8/Materials Resources | -11 -10 -10 -9 -9 -8 ----------- Run | Yrd Mat Min Mat Min Mat Matter Collected 1643 | 179 317 187 79 . 881 Remotely 116 | . . . . . 116 Salvage Created 1882 | . 343 10 361 79 1089 Parts 119 | . 21 . 22 4 72 Haulers Intercepted 1 | . . . . . 1 Recyclers Shooed 2 | . . . . . 2 Parts Field Recycled . | . . . . . . Retrieved Matter . | . . . . . . Parts Self-Destructed . | . . . . . . Prevented . | . . . . . . Kills | -11 -10 -10 -9 -9 -8 ------- Run | Yrd Mat Min Mat Min Mat Combat Hostiles Destroyed 49 | . 11 1 8 2 27 Guns 10 | . 2 1 2 1 4 Cannons 39 | . 9 . 6 1 23 Classes Destroyed 10 | . 3 1 2 . 4 Worker 2 | . 1 . . . 1 Hauler 1 | . . . . . 1 Recycler 4 | . . . . . 4 Swarmer 13 | . 3 . . . 10 Grunt 25 | . 8 . 6 1 10 Brawler 2 | . . . 1 1 . Duelist 1 | . . . . . 1 Sentry 6 | . . . 1 . 5 Hunter 1 | . . . . . 1 Assembled 1 | . . 1 . . . Best Kill Streak 5 | . 5 1 3 2 5 Combat Bots Only 4 | . 4 1 3 2 4 Max Kills in Single Turn 2 | . 1 1 1 1 2 Gunslinging . | . . . . . . Exploded . | . . . . . . Melee . | . . . . . . Uniques/NPCs Destroyed . | . . . . . . Combat | -11 -10 -10 -9 -9 -8 -------- Run | Yrd Mat Min Mat Min Mat Hostile Shots Fired 422 | . 92 13 16 2 299 Missed 134 | . 21 3 8 1 101 Hits 288 | . 71 10 8 1 198 Melee 15 | . . 10 2 . 3 Projectile 273 | . 71 . 6 1 195 Critical Strikes 7 | . . . . . 7 Damage Taken 3742 | . 780 317 134 12 2499 Core 790 | . 128 89 11 12 550 Absorbed by Shields . | . . . . . . Redirected to Shielding 52 | . 52 . . . . Core Remaining (%) 69 | 100 . 13 . 94 . Volleys Fired 139 | . 40 10 13 4 72 Largest 3 | . 2 2 3 3 3 Hottest 198 | . 100 100 198 198 198 Shots Fired 321 | . 74 12 39 12 184 Gun 123 | . 34 8 26 8 47 Cannon 190 | . 34 2 13 4 137 Launcher . | . . . . . . Special 8 | . 6 2 . . . Kinetic 174 | . 34 2 9 . 129 Thermal 136 | . 40 10 30 12 44 Explosive . | . . . . . . Electromagnetic 11 | . . . . . 11 Robot Hit Streak 9 | . 6 7 6 7 9 Robot Miss Streak 6 | . 3 3 2 1 6 Penetration Max . | . . . . . . Secondary Targets . | . . . . . . Shots Hit Robots 178 | . 37 7 20 9 105 Core Hits 99 | . 16 2 9 2 70 Critical Kills . | . . . . . . Critical Parts Destroyed . | . . . . . . Critical Strikes 1 | . . . . . 1 Blast 1 | . . . . . 1 Melee Attacks . | . . . . . . Impact . | . . . . . . Slashing . | . . . . . . Piercing . | . . . . . . Sneak Attacks . | . . . . . . Combat Hostiles . | . . . . . . Follow-up Attacks . | . . . . . . Damage Inflicted 3389 | . 641 75 352 154 2167 Guns 1032 | . 215 75 144 94 504 Cannons 2246 | . 330 . 208 60 1648 Explosions . | . . . . . . Melee . | . . . . . . Ramming 15 | . . . . . 15 Kinetic 1708 | . 215 11 8 . 1474 Thermal 1472 | . 426 64 344 154 484 Explosive . | . . . . . . Electromagnetic 194 | . . . . . 194 Impact . | . . . . . . Slashing . | . . . . . . Piercing . | . . . . . . Highest Corruption 2 | . . . . . 2 Average Corruption 2 | . . . . . 2 Corruption Purged . | . . . . . . Corruption Blocked . | . . . . . . Overload Shots . | . . . . . . Overflow Damage 1 | . . . . . 1 Projectiles 1 | . . . . . 1 Explosions . | . . . . . . Melee . | . . . . . . Knockbacks 23 | . . . . . 23 Impact 1 | . . . . . 1 Kinetic 22 | . . . . . 22 Secondary . | . . . . . . Self-Inflicted Damage 7 | . . . . . 7 Shots . | . . . . . . Rammed 3 | . . . . . 3 Targets Rammed 4 | . . . . . 4 Kicked 1 | . . . . . 1 Crushed . | . . . . . . Highest Temperature 400 | . 400 . 132 144 141 Average Temperature 84 | . 116 . 35 59 46 Received Heat Transfer 1185 | . 342 . 36 6 801 Siege Activations . | . . . . . . Martial Activations . | . . . . . . Shielding Activations . | . . . . . . Robots Disrupted . | . . . . . . Combat Hostiles . | . . . . . . Robots Corrupted . | . . . . . . Combat Hostiles . | . . . . . . Parts Fried . | . . . . . . Impact Corruptions . | . . . . . . Robots Melted . | . . . . . . Combat Hostiles . | . . . . . . Parts Melted 6 | . 1 . 2 1 2 Heat Transferred 3088 | . 903 150 703 333 999 Parts Sabotaged . | . . . . . . Parts Stolen . | . . . . . . Parts Stripped . | . . . . . . Power Chain Reactions . | . . . . . . Alert | -11 -10 -10 -9 -9 -8 ------- Run | Yrd Mat Min Mat Min Mat Maximum Alert Level . | . . . . . . Low Security (%) 100 | 100 100 100 100 100 100 Level 1 . | . . . . . . Level 2 . | . . . . . . Level 3 . | . . . . . . Level 4 . | . . . . . . Level 5 . | . . . . . . High Security . | . . . . . . Max Security . | . . . . . . Peak Influence 182 | . 182 64 88 40 156 Initial 64 | . . 64 . 3 . Average 55 | . 77 4 35 8 83 Influence Increases 1449 | . 353 2 243 50 801 Destroy 0b10 Robot/C 980 | . 220 . 180 40 540 Destroy 0b10 Robot/NC 35 | . 5 . . . 30 Destroy Leader 232 | . 50 . 40 10 132 Allied During Kill 7 | . . . 7 . . Successful Hack 4 | . . . . . 4 Disable Machine 75 | . 30 . 15 . 30 Destroy Structure 11 | . 3 2 1 . 5 Partial Spotted 15 | . . . . . 15 Lose Combat Pursuer 90 | . 45 . . . 45 Influence Decreases 1446 | . 187 168 233 60 798 Entered New Map 109 | . . 102 . 7 . Time Decay 1016 | . 146 46 213 53 558 Lost Part 301 | . 41 20 . . 240 Lost Ally 20 | . . . 20 . . Squads Dispatched 8 | . 3 . 1 . 4 Investigation 2 | . 1 . . . 1 Extermination . | . . . . . . Reinforcement 5 | . 2 . 1 . 2 Assault . | . . . . . . Garrison 1 | . . . . . 1 Intercept . | . . . . . . Searches Triggered . | . . . . . . Construction Impeded . | . . . . . . Haulers Reinforced . | . . . . . . Active Scanning Responses . | . . . . . . Cargo Convoy Interrupts . | . . . . . . Stealth | -11 -10 -10 -9 -9 -8 --------- Run | Yrd Mat Min Mat Min Mat Distress Signals 5 | . . . 1 . 4 Communications Jammed . | . . . . . . Distress Signals . | . . . . . . Times Spotted 89 | . 15 11 13 2 48 Peak Tracking Total 13 | . 5 13 4 2 5 Tactical Retreats 6 | . 2 2 . . 2 Traps | -11 -10 -10 -9 -9 -8 ------- Run | Yrd Mat Min Mat Min Mat Traps Triggered 1 | . 1 . . . . Indirectly . | . . . . . . Trap Hack Attempts . | . . . . . . Triggered . | . . . . . . Disarmed 3 | . . . . . 3 Reprogrammed . | . . . . . . Reused . | . . . . . . Traps Extracted . | . . . . . . Installed . | . . . . . . Triggered . | . . . . . . Machines | -11 -10 -10 -9 -9 -8 ---------- Run | Yrd Mat Min Mat Min Mat Machines Disabled 5 | . 2 . 1 . 2 Max in Single Turn 1 | . 1 . 1 . 1 Machines Repaired . | . . . . . . Machines Dismantled . | . . . . . . Machines Sabotaged . | . . . . . . Overloaded Fab Kills . | . . . . . . Hacking | -11 -10 -10 -9 -9 -8 --------- Run | Yrd Mat Min Mat Min Mat Machines Accessed 7 | . 1 . 1 1 4 Terminals 5 | . 1 . 1 . 3 Fabricators . | . . . . . . Repair Stations . | . . . . . . Recycling Units 1 | . . . . . 1 Scanalyzers . | . . . . . . Garrison Access . | . . . . . . Total Hacks 18 | . 6 . 2 1 9 Successful 8 | . . . . 1 7 Failed 10 | . 6 . 2 . 2 Catastrophic 1 | . 1 . . . . Database Lockouts . | . . . . . . Manual . | . . . . . . Terminals 13 | . 6 . 2 . 5 Fabricators . | . . . . . . Repair Stations . | . . . . . . Recycling Units 4 | . . . . . 4 Scanalyzers . | . . . . . . Garrison Access . | . . . . . . Terminal Hacks 5 | . . . . 1 4 Open Door 1 | . . . . 1 . Locate Traps 1 | . . . . . 1 Disarm Traps 1 | . . . . . 1 Hauler Manifests 1 | . . . . . 1 Zone Layout 1 | . . . . . 1 Fabricator Hacks . | . . . . . . Repair Station Hacks . | . . . . . . Recycling Unit Hacks 3 | . . . . . 3 Recycle Component 1 | . . . . . 1 Process 1 | . . . . . 1 Retrieve Matter 1 | . . . . . 1 Scanalyzer . | . . . . . . Garrison Access Hacks . | . . . . . . Unauthorized Hacks . | . . . . . . Terminals . | . . . . . . Fabricators . | . . . . . . Repair Stations . | . . . . . . Recycling Units . | . . . . . . Scanalyzers . | . . . . . . Garrison Access . | . . . . . . Data Cores Recovered . | . . . . . . Used . | . . . . . . Hacking Detections 3 | . 1 . . . 2 Full Trace Events 1 | . . . . . 1 Feedback Events . | . . . . . . Feedback Blocked . | . . . . . . Robot Schematics Acquired . | . . . . . . Robots Built . | . . . . . . Authchips . | . . . . . . Time . | . . . . . . Total Robot Build Rating . | . . . . . . Part Schematics Acquired . | . . . . . . Parts Built . | . . . . . . Authchips . | . . . . . . Time . | . . . . . . Total Part Build Rating . | . . . . . . Parts Repaired . | . . . . . . Time . | . . . . . . Parts Recycled 1 | . . . . . 1 Recycled Matter 146 | . . . . . 146 Retrieved Matter . | . . . . . . Retrieved Components . | . . . . . . Parts Scanalyzed . | . . . . . . Part Schematics Acquired . | . . . . . . Parts Damaged . | . . . . . . Bothacking | -11 -10 -10 -9 -9 -8 ------------ Run | Yrd Mat Min Mat Min Mat Used RIF Installer . | . . . . . . Robots Hacked . | . . . . . . Non-combat . | . . . . . . Combat . | . . . . . . Robot Hacks Applied . | . . . . . . Relay Couplers Released . | . . . . . . Fabnet Peak Effective % . | . . . . . . Robots Rewired . | . . . . . . Allies Hacked . | . . . . . . Hacks Repelled . | . . . . . . Allies | -11 -10 -10 -9 -9 -8 -------- Run | Yrd Mat Min Mat Min Mat Total Allies 4 | . . 4 . . . Largest Group 4 | . . 4 3 . . Highest-Rated Group 71 | . . 71 40 . . Highest-Rated Ally 31 | . . 31 16 . . Total Orders . | . . . . . . Ally Attacks 16 | . . . 16 . . Total Damage 158 | . . . 158 . . Kills 1 | . . . 1 . . Allies Corrupted . | . . . . . . Allies Melted . | . . . . . . Intel | -11 -10 -10 -9 -9 -8 ------- Run | Yrd Mat Min Mat Min Mat Active Infowar (turns) 2137 | . . . 554 249 1334 Seismic 2137 | . . . 554 249 1334 Robot Analysis Total . | . . . . . . Derelict Logs Recovered 1 | . . 1 . . . Drone Launches . | . . . . . . Drone Recoveries . | . . . . . . Exploration | -11 -10 -10 -9 -9 -8 ------------- Run | Yrd Mat Min Mat Min Mat Turns Passed 3900 | 65 430 675 580 249 1901 Spaces Moved 1448 | 35 150 394 256 144 469 Core 89 | 1 3 . . . 85 Treads 1070 | 34 110 394 256 144 132 Legs 123 | . 37 . . . 86 Wheels . | . . . . . . Hover 103 | . . . . . 103 Flight 63 | . . . . . 63 Fastest Speed 40 | 50 120 160 160 160 40 Average Speed 211 | 156 149 160 160 160 320 Slowest Speed 1960 | 160 160 160 160 160 1960 Overloaded Moves . | . . . . . . Propulsion Burnouts . | . . . . . . Robots Hopped 1 | . . . . . 1 Potential Cave-ins . | . . . . . . Cave-ins Triggered . | . . . . . . Exploration Rate (%) 39 | 4 34 91 24 38 45 Regions Visited 5 Branch Regions 2 Pre-discovered Areas . | . . . . . . Known Exits Taken . | . . . . . . Unknown Exits Taken 5 | 1 1 1 1 1 . Scrap Searched 3 | . . 3 . . . Spaces Dug 2 | . . 2 . . . Terrain Destroyed 6 | . 1 2 . . 3 Melee . | . . . . . . Projectile 6 | . 1 2 . . 3 AOE . | . . . . . . Terrain Rammed . | . . . . . . Walls Destroyed . | . . . . . . Machines Disabled . | . . . . . . Actions | -11 -10 -10 -9 -9 -8 --------- Run | Yrd Mat Min Mat Min Mat Total 2010 | 45 268 423 401 154 719 Wait 253 | . 53 . 114 6 80 Move 1441 | 34 149 393 255 143 467 Hop 1 | . . . . . 1 Pick Up 66 | 6 11 7 7 1 34 Fast Attach . | . . . . . . Attach 47 | 5 9 5 3 . 25 Detach 1 | . . . 1 . . Swap 27 | . 4 4 3 . 16 Drop 31 | . 2 4 5 . 20 Fire 139 | . 40 10 13 4 72 Melee . | . . . . . . Ram 3 | . . . . . 3 Kick 1 | . . . . . 1 Crush . | . . . . . . Escape Stasis . | . . . . . . Rewire . | . . . . . . Trap . | . . . . . . Miscellaneous . | . . . . . . Route ------- -11/Scrapyard -10/Materials -10/Mines -9/Materials -9/Mines -8/Materials History --------- Turn | Location | Event 39 | -11/Scrapyard | Discovered new exit (range 16) 66 | -11/Scrapyard | Entered Materials 302 | -10/Materials | Build established: Mutant 353 | -10/Materials | Lost 4 parts (1p2n1u) 395 | -10/Materials | Core integrity fell below 50% 472 | -10/Materials | Discovered new exit (range 16) 496 | -10/Materials | Entered Mines 509 | -10/Mines | Assembled infested the area 514 | -10/Mines | Assisted by a Guerilla fighting off Assembled 556 | -10/Mines | Core integrity fell below 20% 801 | -10/Mines | Received a Mining Laser from a helpful Derelict 935 | -10/Mines | Found a damaged Exp. Sensor Array with a note attached 938 | -10/Mines | Found Prototype Device 940 | -10/Mines | Identified Exp. Sensor Array 1034 | -10/Mines | Assisted by bots powering up and referring to "LRC-V3" 1138 | -10/Mines | Learned Materials terminal intel 1154 | -10/Mines | Discovered new exit (range 7) 1171 | -10/Mines | Entered Materials 1171 | -9/Materials | Accompanied by 3 allies 1171 | -9/Materials | Evolved 2 slots: Utility x1, Weapon x1 1172 | -9/Materials | Loaded intel: 12 terminal locations 1477 | -9/Materials | Build established: Scavenger-Gunner 1655 | -9/Materials | Discovered new exit (range 14) 1751 | -9/Materials | Entered Mines 1762 | -9/Mines | Met a Derelict bent on vengeance 1958 | -9/Mines | Discovered new exit (range 12) 1963 | -9/Mines | Found the Drone Emporium 1972 | -9/Mines | Found Prototype Device 2000 | -9/Mines | Entered Materials 2000 | -8/Materials | Evolved 2 slots: Propulsion x1, Utility x1 2000 | -8/Materials | Identified Sensor Drone Bay 2616 | -8/Materials | Build established: Gunner 3050 | -8/Materials | Garrison activated, responded to threat 3124 | -8/Materials | Lost 4 parts (2n2w) 3337 | -8/Materials | Core integrity fell below 50% 3365 | -8/Materials | Lost 8 parts (1p3u4w) 3708 | -8/Materials | Build established: Scavenger-Mutant 3845 | -8/Materials | Core integrity fell below 20% 3901 | -8/Materials | Lost 7 parts (1p1n3u2w) 3901 | -8/Materials | Destroyed by Y-45 Defender with Beam Rifle Last Messages --------------- Extracted 19 energy. Acquired Med. Battery. Acquired Huge Storage Unit. Dropped Huge Storage Unit. Acquired Tractor Beam. Tractor Beam destroyed. Acquired 30 matter. Acquired Target Analyzer. Note that some effects only stack once, the second-best part only contributing half its effect, e.g. attaching both Target Analyzer and Target Analyzer does not fully combine the effects of both (all such effects are marked ). Slammed into K-01 Serf. K-01 Serf knocked back. Med. Battery destroyed. System corrupted by crushing effect (+2). Cooling System destroyed. Slammed into Y-45 Defender. Map ----- +----------------------------------------------------+ | ???????# ##### [+ | | ???????# # | | ???????# ##############????#########+######% !#? | | ???????#% #????????????????????# # #? | | ???????# #????????????????????# """ # #? | | ??????# #????##??????????????# """"" + #? | | ?????# #??? ??????????????# """"" # #? | | ? ???## ##? """??????????????# """"" # #? | | ###+### # """??????????????# """ # #? | | # """ #??????????#?? # ## | | + #?????????############## ## | | # """??????????## ####### !! # | | ####### # ?????????????? # | | ??????## ##? ??????????????? " T + | | ???????# #?? ?????????????? # | | ???????# #???#??????######+### ####### # | | ???????# #??????????# ####????????## ## | | ???????# #??????????# ! #????????????# ## | | ???????# #??????????# #????????????# ## | | ???????# #??????????# #????????????# ## | | ???????# #??????????# #????????????# #] | | ???????# #??????????# #????????????# # | | ???????# #??????????# #????????????# # | | ???????# #####+##???# ??????????????# # | | ???????# ^ #???? ????????????????# # | | ???????# #?????#@#?#######?????????# # | | ???????# ^ #?????# #?# #?????????# + | | #####??# ^ ^ #?????# #?# ########### # | | ! ?# #?????# #?# #[ # # | | ?# ^! ^ #???### ### # """ "|# ## | | ] !!! # % #???# # # """" [T%# | | !!! #% ##### # # """""%" +% | | !! + ! T + # """"" # | | [ #% % ##### # # """ ###### | | ###+#####+###### Y # # #??# | | ??# ###+### # !#??# | | ??# ## + ###### ####??# " | | #### ???# ## # #????##??????# " | | ???##???# ## #######????????????# " | | ????????# ## #??????????????????# | | ????????# ## #??????????????????# | | ????????#####################??????????????????### | | | | | | | | | | | | | | | | | +----------------------------------------------------+ Best States ------------- Heat Dissipation 55 Energy Generation 14 Energy Capacity 275 Matter Stores 450 Matter Capacity 450 Sight Range 16 Terrain Scan Density 10 Weapon Shielding 33 Evasion (%) 62 Target Analysis 7 Recoil Reduction 2 Item Schematics ----------------- None Robot Schematics ------------------ None Fabricated ------------ Nothing Repaired ---------- Nothing Alien Tech Used ----------------- None Achievements -------------- None Challenges ------------ None Game ------ Seed TrackerSuperquantumLoader Manual? 0 Play Time 00:48:09 Cumulative 6.2 hours Start 2025.10.07 @ 17:08:22 End 2025.10.07 @ 18:17:48 Sessions 1 Manual Loads 0 Difficulty Rogue Special Mode None Game No. 8 Rogue 8 Adventurer 0 Explorer 0 Win Type - Total 0 Types 0/0/0/0/0/0/0/0/0/0 Lore% 2 Gallery% 11 Achievement% 13 Wizard Run 0 Options --------- Layout 1 ASCII 0 Keyboard 0 Movement Numpad Keybinds 0 Fullscreen 1 Font 24/Smallcaps Map View 50x35 Zoom Use 0% Tactical HUD 0 Map Filters NONE Filters NONE Steam 1 RUN: ca47cd2d-bf4e-4ab0-9582-db4dbbc89084